Cogmind - Beta 15 @@@ ROGUE MODE // 2025.08.08 @ 19:16:30 Player: shapeshifter Result: Destroyed by 9F-C6Y(R) with Subdweller Laser Performance ------------- Evolutions (0) 0 Regions Visited (2) 400 Robots Destroyed (0) 0 Value Destroyed (0) 0 Prototype IDs (0) 0 Alien Tech Used (0) 0 Bonus (0) 0 TOTAL SCORE: 400 Bonus ------- None Cogmind --------- Core Integrity 0/250 Matter 300/300 Energy 99/100 System Corruption 0% Temperature Cool (6) Movement Core (50) Location -10/Subcaves Parts ------- > --- POWER (1) -------- (None) > --- PROPULSION (2) --- (None) > --- UTILITY (2) ------ Subdweller Optics > --- WEAPON (2) ------- (None) > --- INVENTORY (5) ---- Small Storage Unit Light Armor Plating Scrap Shield Grenade Launcher Peak State ------------ > --- POWER ------------ (None) > --- PROPULSION ------- (None) > --- UTILITY ---------- Improved Terrain Scanner Seismic Detector > --- WEAPON ----------- Mining Laser > --- INVENTORY -------- Small Storage Unit Light Armor Plating Grenade Launcher [Rating: 5] Favorites ----------- Power Subdweller Power Source Engine Subdweller Power Source Propulsion None Utility Improved Terrain Scanner Device Improved Terrain Scanner Weapon Mining Laser Special Weapon Mining Laser Build | -11 -10 -10 ------- Run | Yrd Mat Sub Slots Evolved . | . . . Power . | . . . Propulsion . | . . . Utility . | . . . Weapon . | . . . Parts Attached 5 | . 1 4 Power 1 | . . 1 Engine 1 | . . 1 Core . | . . . Reactor . | . . . Propulsion . | . . . Treads . | . . . Leg . | . . . Wheel . | . . . Hover . | . . . Flight . | . . . Utility 3 | . . 3 Device 3 | . . 3 Storage . | . . . Processor . | . . . Hackware . | . . . Protection . | . . . Artifact . | . . . Weapon 1 | . 1 . Energy Gun . | . . . Energy Cannon . | . . . Ballistic Gun . | . . . Ballistic Cannon . | . . . Launcher . | . . . Special Weapon 1 | . 1 . Impact Weapon . | . . . Slashing Weapon . | . . . Piercing Weapon . | . . . Special Melee Weapon . | . . . Unidentified Prototypes . | . . . Parts Lost 3 | . . 3 Power . | . . . Propulsion . | . . . Utility 2 | . . 2 Weapon 1 | . . 1 Highest Loss Streak 2 | . . 2 To Critical Strikes . | . . . Average Backups 3 | . 2 4 Power . | . . . Propulsion . | . . . Utility 2 | . 1 3 Weapon . | . . 1 Tool/Special . | . . . Unused Backups 4 | . . 4 Power . | . . . Propulsion . | . . . Utility 3 | . . 3 Weapon 1 | . . 1 Tool/Special . | . . . Average Slot Usage (%) 16 | . 1 24 Device 14 | . . 20 Special Weapon 2 | . 1 3 Peak Build Rating 5 | . 1 5 Average Rating 2 | . . 3 On Entrance . | . . 1 Naked Turns 103 | . 103 . Heaviest Build 3 | . 1 3 Greatest Support 3 | 3 3 3 Greatest Overweight (x) . | . . . Average Overweight (x) . | . . . Largest Inventory Capacity 5 | 5 5 5 Average Capacity 5 | 5 5 5 Most Carried 5 | 1 5 5 Average Carried 4 | . 2 4 Final Capacity 5 | 5 5 5 Final Carried 5 | 1 5 5 Class Distribution -------------------- 100% | Mutant Dominant Class ---------------- Mutant | -10/Materials Mutant | -10/Subcaves Resources | -11 -10 -10 ----------- Run | Yrd Mat Sub Matter Collected 240 | 165 19 56 Remotely . | . . . Salvage Created . | . . . Parts . | . . . Haulers Intercepted . | . . . Recyclers Shooed . | . . . Parts Field Recycled . | . . . Retrieved Matter . | . . . Parts Self-Destructed 4 | . . 4 Prevented . | . . . Kills | -11 -10 -10 ------- Run | Yrd Mat Sub Combat Hostiles Destroyed . | . . . Classes Destroyed . | . . . Best Kill Streak . | . . . Combat Bots Only . | . . . Max Kills in Single Turn . | . . . Gunslinging . | . . . Exploded . | . . . Melee . | . . . Uniques/NPCs Destroyed . | . . . Combat | -11 -10 -10 -------- Run | Yrd Mat Sub Hostile Shots Fired 24 | . 15 9 Missed 6 | . 6 . Hits 18 | . 9 9 Projectile 18 | . 9 9 AOE 1 | . . 1 Damage Taken 355 | . 132 223 Core 259 | . 114 145 Absorbed by Shields . | . . . Core Remaining (%) 100 | 100 . . Volleys Fired 1 | . 1 . Largest 1 | . 1 . Hottest 100 | . 100 . Shots Fired 1 | . 1 . Gun . | . . . Cannon . | . . . Launcher . | . . . Special 1 | . 1 . Kinetic . | . . . Thermal 1 | . 1 . Explosive . | . . . Electromagnetic . | . . . Robot Hit Streak . | . . . Robot Miss Streak . | . . . Penetration Max . | . . . Secondary Targets . | . . . Shots Hit Robots . | . . . Core Hits . | . . . Critical Kills . | . . . Critical Parts Destroyed . | . . . Critical Strikes . | . . . Melee Attacks . | . . . Impact . | . . . Slashing . | . . . Piercing . | . . . Sneak Attacks . | . . . Combat Hostiles . | . . . Follow-up Attacks . | . . . Damage Inflicted . | . . . Guns . | . . . Cannons . | . . . Explosions . | . . . Melee . | . . . Ramming . | . . . Kinetic . | . . . Thermal . | . . . Explosive . | . . . Electromagnetic . | . . . Impact . | . . . Slashing . | . . . Piercing . | . . . Highest Corruption . | . . . Average Corruption . | . . . Corruption Purged . | . . . Corruption Blocked . | . . . Overload Shots . | . . . Overflow Damage . | . . . Projectiles . | . . . Explosions . | . . . Melee . | . . . Knockbacks . | . . . Impact . | . . . Kinetic . | . . . Secondary . | . . . Self-Inflicted Damage . | . . . Shots . | . . . Rammed . | . . . Targets Rammed . | . . . Kicked . | . . . Crushed . | . . . Highest Temperature 18 | . 18 . Average Temperature 12 | . 12 . Received Heat Transfer 99 | . 75 24 Siege Activations . | . . . Martial Activations . | . . . Shielding Activations . | . . . Robots Disrupted . | . . . Combat Hostiles . | . . . Robots Corrupted . | . . . Combat Hostiles . | . . . Parts Fried . | . . . Impact Corruptions . | . . . Robots Melted . | . . . Combat Hostiles . | . . . Parts Melted . | . . . Heat Transferred . | . . . Parts Sabotaged . | . . . Parts Stolen . | . . . Parts Stripped . | . . . Power Chain Reactions . | . . . Alert | -11 -10 -10 ------- Run | Yrd Mat Sub Maximum Alert Level . | . . . Low Security (%) 100 | 100 100 . Level 1 . | . . . Level 2 . | . . . Level 3 . | . . . Level 4 . | . . . Level 5 . | . . . High Security . | . . . Max Security . | . . . Peak Influence 5 | . 5 . Initial . | . . . Average . | . . . Influence Increases 9 | . 9 . Successful Hack 9 | . 9 . Influence Decreases 9 | . 9 . Time Decay 9 | . 9 . Squads Dispatched 1 | . 1 . Investigation 1 | . 1 . Extermination . | . . . Reinforcement . | . . . Assault . | . . . Garrison . | . . . Intercept . | . . . Searches Triggered . | . . . Construction Impeded . | . . . Haulers Reinforced . | . . . Active Scanning Responses . | . . . Cargo Convoy Interrupts . | . . . Stealth | -11 -10 -10 --------- Run | Yrd Mat Sub Distress Signals . | . . . Communications Jammed . | . . . Distress Signals . | . . . Times Spotted 12 | . 3 9 Peak Tracking Total 7 | . 3 7 Tactical Retreats . | . . . Traps | -11 -10 -10 ------- Run | Yrd Mat Sub Traps Triggered . | . . . Indirectly . | . . . Trap Hack Attempts . | . . . Triggered . | . . . Disarmed . | . . . Reprogrammed . | . . . Reused . | . . . Traps Extracted . | . . . Installed . | . . . Triggered . | . . . Machines | -11 -10 -10 ---------- Run | Yrd Mat Sub Machines Disabled . | . . . Max in Single Turn . | . . . Machines Repaired . | . . . Machines Dismantled . | . . . Machines Sabotaged . | . . . Overloaded Fab Kills . | . . . Hacking | -11 -10 -10 --------- Run | Yrd Mat Sub Machines Accessed 3 | . 3 . Terminals 3 | . 3 . Fabricators . | . . . Repair Stations . | . . . Recycling Units . | . . . Scanalyzers . | . . . Garrison Access . | . . . Total Hacks 5 | . 5 . Successful 3 | . 3 . Failed 2 | . 2 . Catastrophic . | . . . Database Lockouts . | . . . Manual 4 | . 4 . Terminals 5 | . 5 . Fabricators . | . . . Repair Stations . | . . . Recycling Units . | . . . Scanalyzers . | . . . Garrison Access . | . . . Terminal Hacks 2 | . 2 . Zone Layout 2 | . 2 . Fabricator Hacks . | . . . Repair Station Hacks . | . . . Recycling Unit Hacks . | . . . Scanalyzer . | . . . Garrison Access Hacks . | . . . Unauthorized Hacks 1 | . 1 . Terminals 1 | . 1 . Botnet 1 | . 1 . Fabricators . | . . . Repair Stations . | . . . Recycling Units . | . . . Scanalyzers . | . . . Garrison Access . | . . . Data Cores Recovered . | . . . Used . | . . . Hacking Detections 1 | . 1 . Full Trace Events 1 | . 1 . Feedback Events . | . . . Feedback Blocked . | . . . Robot Schematics Acquired . | . . . Robots Built . | . . . Authchips . | . . . Time . | . . . Total Robot Build Rating . | . . . Part Schematics Acquired . | . . . Parts Built . | . . . Authchips . | . . . Time . | . . . Total Part Build Rating . | . . . Parts Repaired . | . . . Time . | . . . Parts Recycled . | . . . Recycled Matter . | . . . Retrieved Matter . | . . . Retrieved Components . | . . . Parts Scanalyzed . | . . . Part Schematics Acquired . | . . . Parts Damaged . | . . . Bothacking | -11 -10 -10 ------------ Run | Yrd Mat Sub Used RIF Installer . | . . . Robots Hacked . | . . . Non-combat . | . . . Combat . | . . . Robot Hacks Applied . | . . . Relay Couplers Released . | . . . Fabnet Peak Effective % . | . . . Robots Rewired . | . . . Allies Hacked . | . . . Hacks Repelled . | . . . Allies | -11 -10 -10 -------- Run | Yrd Mat Sub Total Allies . | . . . Largest Group . | . . . Highest-Rated Group . | . . . Highest-Rated Ally . | . . . Total Orders . | . . . Ally Attacks . | . . . Total Damage . | . . . Kills . | . . . Allies Corrupted . | . . . Allies Melted . | . . . Intel | -11 -10 -10 ------- Run | Yrd Mat Sub Active Infowar (turns) 189 | . . 189 Optics 54 | . . 54 Terrain 189 | . . 189 Seismic 55 | . . 55 Robot Analysis Total . | . . . Derelict Logs Recovered 2 | . . 2 Drone Launches . | . . . Drone Recoveries . | . . . Exploration | -11 -10 -10 ------------- Run | Yrd Mat Sub Turns Passed 364 | 12 109 243 Spaces Moved 642 | 22 160 460 Core 642 | 22 160 460 Treads . | . . . Legs . | . . . Wheels . | . . . Hover . | . . . Flight . | . . . Fastest Speed 50 | 50 50 50 Average Speed 50 | 50 50 50 Slowest Speed 50 | 50 50 50 Overloaded Moves . | . . . Propulsion Burnouts . | . . . Robots Hopped . | . . . Potential Cave-ins . | . . . Cave-ins Triggered . | . . . Exploration Rate (%) 23 | 3 30 37 Regions Visited 2 Branch Regions 1 Pre-discovered Areas 2 | . . 2 Known Exits Taken . | . . . Unknown Exits Taken 2 | 1 1 . Scrap Searched . | . . . Spaces Dug . | . . . Terrain Destroyed . | . . . Melee . | . . . Projectile . | . . . AOE . | . . . Terrain Rammed . | . . . Walls Destroyed . | . . . Machines Disabled . | . . . Actions | -11 -10 -10 --------- Run | Yrd Mat Sub Total 678 | 22 184 472 Wait 25 | . 19 6 Move 640 | 21 159 460 Hop . | . . . Pick Up 6 | 1 4 1 Fast Attach 3 | . 1 2 Attach 2 | . . 2 Detach . | . . . Swap . | . . . Drop 1 | . . 1 Fire 1 | . 1 . Melee . | . . . Ram . | . . . Kick . | . . . Crush . | . . . Escape Stasis . | . . . Rewire . | . . . Trap . | . . . Miscellaneous . | . . . Route ------- -11/Scrapyard -10/Materials (discovered 2 exits: [*Mat] / [*Sub]) -10/Subcaves History --------- Turn | Location | Event 5 | -11/Scrapyard | Discovered new exit (range 16) 13 | -11/Scrapyard | Entered Materials 55 | -10/Materials | Discovered new exit (range 16) 117 | -10/Materials | Discovered new exit (range 2) 122 | -10/Materials | Entered Subcaves 168 | -10/Subcaves | Learned location of Zion (-7) 176 | -10/Subcaves | Ambushed by swarm of Subdwellers 179 | -10/Subcaves | Core integrity fell below 50% 228 | -10/Subcaves | Lost 3 allies 306 | -10/Subcaves | Ambushed by Subdwellers from Twisted Machinery 308 | -10/Subcaves | Build established: Mutant 310 | -10/Subcaves | Core integrity fell below 20% 331 | -10/Subcaves | Shifting Twisted Machinery released Mak. Kinetic Plating 353 | -10/Subcaves | Shifting Twisted Machinery released Piercing Trap 365 | -10/Subcaves | Destroyed by 9F-C6Y(R) with Subdweller Laser Last Messages --------------- 00195_ 3C-656(R) suffers critical hit (Destroy). 00195_ 3C-656(R) destroyed. 00197_ L2-SC8(g) destroyed. 00221_ HV Slug penetrates FS-YQF(R). 00221_ FS-YQF(R) destroyed. 00225_ Acquired 36 matter. 00227_ Subatomizers dissect the Imp. Heat Sink. 00227_ Acquired Sub. Power Source. 00228_ Dropped Sub. Power Source. 00230_ Acquired Sub. Optics. 00233_ Acquired 20 matter. 00239_ Subatomizers dissect the Sub. Power Source. 00276_ 6X-JM5(z): "She is not going to be happy we haven't found any suitable candidates yet." 00312_ Imp. Terrain Scanner destroyed. Mak. Kinetic Plating falls loose from the Twisted Machinery. Piercing Trap falls loose from the Twisted Machinery. Map ----- +----------------------------------------------------+ | ?????????????????????????????????????????????????? | | ?????????????????????????????????????????????????? | | ?????????????????????????????????????????????????? | | ?????????????????????????????????????????????????? | | ?????????????????????????????????????????????????? | | ?????????????????????????????????????????????????? | | ?????????????????????????????#???????????????????? | | ?????????????????????????????#"??????????????????? | | ????????????????????????????## ??????????????????? | | ????????????????????????????# ?????????????????? | | ????????????????????????????## ????##???????????? | | ????????????????????????????? ""### #???????????? | | ???????????????????????????????""# ""##??????????? | | ????????????????????????????????# &""###????????? | | ????????????????????????????????## """##???????? | | ????????????????????????????????## """ #???????? | | ????????????????????????????????# """###???????? | | ????????????????????????????????# ##?????????? | | ????????????????????????????????## ##??????????? | | ?????????????????????????????????# ##??????????? | | ??????????????#??????????????????# ##????##???? | | ??????????????# ?????????????????# #????# ##?? | | ???????????????# #??????#####???## #??### ### | | ???????????????# ????## ##?## ### # # | | ??????????????## #?### ### """"" | | ??????????????# ## @ " """ | | ??????????????# R ## # """"" | | ?????????????# ## ### ##?####?# " | | ?????????????# ?????## ##??# #???????# "" | | ?????????????????????# #????##????#### " | | ?????????????????????### # ##?????????## ## | | ???????????????????????# #####??????????# #?? | | ??????????????????????## #?????????????## #?? | | ??????????????????????# ##????########### #?? | | ??????????????????????## #???## # ###?? | | ??????????????????????# #??## #???? | | ??????????????????????## #### ##???? | | ???????????????????????# ##????? | | ???????????????????????# "" ##?????? | | ??????????????????????# """ #??????? | | ??????????????????????# """ ## ##??????? | | ??????????????????????# " ##### #???????? | | ??????????????????#### " ???# ## #???????? | | ????????????????## " " ???# ### #?????? | | ?????????????####""" ???# #?# #????? | | ????????????## """ ???# ##### ???? | | ????????????# "" ?### ???# #?# ?? | | ????????????# "" ????#???# ### # #?? | | ????????????# "" #???????###### #?# ####?? | | ?????????????#" ##?????####### #??####????? | +----------------------------------------------------+ Best States ------------- Heat Dissipation 25 Energy Generation 5 Energy Capacity 100 Matter Stores 300 Matter Capacity 300 Sight Range 21 Terrain Scan Range 16 Terrain Scan Density 10 Evasion (%) 50 Item Schematics ----------------- None Robot Schematics ------------------ None Fabricated ------------ Nothing Repaired ---------- Nothing Alien Tech Used ----------------- None Achievements -------------- None Challenges ------------ None Game ------ Seed GhostIntegratedBroadsword Manual? 0 Play Time 00:10:01 Cumulative 117.5 hours Start 2025.08.08 @ 19:06:21 End 2025.08.08 @ 19:16:30 Sessions 1 Manual Loads 0 Difficulty Rogue Special Mode None Game No. 204 Rogue 204 Adventurer 0 Explorer 0 Win Type - Total 1 Types 1/0/0/0/0/0/0/0/0/0 Lore% 69 Gallery% 64 Achievement% 44 Wizard Run 0 Options --------- Layout 1 ASCII 0 Keyboard 0 Movement Numpad Keybinds 0 Fullscreen 1 Font 24/Smallcaps Map View 50x40 Zoom Use 0% Tactical HUD 1 Map Filters NONE Filters NONE Steam 1 RUN: d23ce5df-8a46-442c-b914-ac301fd2c096